[Event "Live Chess"]
[Site "Chess.com"]
[Date "2024.06.02"]
[Round "-"]
[White "kylet1990"]
[Black "Ninifu"]
[Result "0-1"]
[WhiteElo "750"]
[BlackElo "2010"]
[TimeControl "300"]
[EndTime "5:01:22 PDT"]
[Termination "Ninifu won by resignation"]

1. e4 {[%clk 0:04:59.4]} 1... d5 {[%clk 0:04:56.3]} 2. exd5 {[%clk 0:04:58]}
2... Nf6 {[%clk 0:04:53.5]} 3. Nf3 {[%clk 0:04:54.9]} 3... Bg4 {[%clk
0:04:50.5]} 4. h3 {[%clk 0:04:52.4]} 4... Bxf3 {[%clk 0:04:49.5]} 5. Qxf3 {[%clk
0:04:51.2]} 5... Qxd5 {[%clk 0:04:48.9]} 6. Qxd5 {[%clk 0:04:49.7]} 6... Nxd5
{[%clk 0:04:48.4]} 7. d4 {[%clk 0:04:47.7]} 7... Nb4 {[%clk 0:04:45.2]} 8. Na3
{[%clk 0:04:45.5]} 8... N8c6 {[%clk 0:04:44.1]} 9. c3 {[%clk 0:04:43.5]} 9...
Nd5 {[%clk 0:04:39.5]} 10. c4 {[%clk 0:04:40.7]} 10... Ndb4 {[%clk 0:04:33.7]}
11. d5 {[%clk 0:04:35.7]} 11... Nd4 {[%clk 0:04:31.7]} 12. g4 {[%clk 0:04:25.1]}
12... Nbc2+ {[%clk 0:04:29.5]} 13. Nxc2 {[%clk 0:04:23.2]} 13... Nxc2+ {[%clk
0:04:28.8]} 14. Ke2 {[%clk 0:04:22.1]} 14... Nxa1 {[%clk 0:04:28.1]} 15. Kf3
{[%clk 0:04:17.4]} 15... Nc2 {[%clk 0:04:26.9]} 0-1

[Event "Live Chess"]
[Site "Chess.com"]
[Date "2024.06.02"]
[Round "-"]
[White "blunderabit"]
[Black "yarek"]
[Result "0-1"]
[WhiteElo "1765"]
[BlackElo "1759"]
[TimeControl "300"]
[EndTime "5:01:31 PDT"]
[Termination "yarek won on time"]

1. e4 {[%clk 0:04:54.2]} 1... g6 {[%clk 0:04:59.3]} 2. Nc3 {[%clk 0:04:50.6]}
2... Bg7 {[%clk 0:04:58.5]} 3. d4 {[%clk 0:04:49.1]} 3... c6 {[%clk 0:04:57.4]}
4. Nf3 {[%clk 0:04:45.6]} 4... d5 {[%clk 0:04:56.9]} 5. h3 {[%clk 0:04:44.5]}
5... dxe4 {[%clk 0:04:54.5]} 6. Nxe4 {[%clk 0:04:43.2]} 6... Nf6 {[%clk
0:04:54.2]} 7. Bd3 {[%clk 0:04:41.3]} 7... Nbd7 {[%clk 0:04:50]} 8. O-O {[%clk
0:04:30.3]} 8... Nxe4 {[%clk 0:04:47.6]} 9. Bxe4 {[%clk 0:04:29.1]} 9... Nf6
{[%clk 0:04:47.5]} 10. Bd3 {[%clk 0:04:27.7]} 10... O-O {[%clk 0:04:45]} 11. Re1
{[%clk 0:04:25.2]} 11... Qc7 {[%clk 0:04:24.5]} 12. Qe2 {[%clk 0:04:18.3]} 12...
Be6 {[%clk 0:04:20.3]} 13. Ng5 {[%clk 0:04:12.1]} 13... Bd5 {[%clk 0:03:25.4]}
14. Qxe7 {[%clk 0:04:01.2]} 14... Qa5 {[%clk 0:03:12.8]} 15. b4 {[%clk
0:03:42.9]} 15... Qb6 {[%clk 0:03:05.5]} 16. Be3 {[%clk 0:03:08.5]} 16... Rfe8
{[%clk 0:02:46.2]} 17. Qc5 {[%clk 0:03:06.3]} 17... Qc7 {[%clk 0:02:37.8]} 18.
h4 {[%clk 0:02:38.2]} 18... h6 {[%clk 0:02:20.1]} 19. Nh3 {[%clk 0:02:36]} 19...
Ng4 {[%clk 0:01:49.8]} 20. Bf4 {[%clk 0:02:32.1]} 20... Qd8 {[%clk 0:01:32.8]}
21. Rxe8+ {[%clk 0:02:09]} 21... Qxe8 {[%clk 0:01:32.7]} 22. Kf1 {[%clk
0:01:40.3]} 22... Qd8 {[%clk 0:01:22.4]} 23. Re1 {[%clk 0:01:29.1]} 23... Qxh4
{[%clk 0:01:17.1]} 24. Bg3 {[%clk 0:01:07]} 24... Qf6 {[%clk 0:01:10.4]} 25. c3
{[%clk 0:01:01]} 25... b6 {[%clk 0:01:03.5]} 26. Qe7 {[%clk 0:00:54.5]} 26...
Bxa2 {[%clk 0:00:35.7]} 27. Qxf6 {[%clk 0:00:46.9]} 27... Nxf6 {[%clk
0:00:33.9]} 28. Re7 {[%clk 0:00:41.4]} 28... Nd5 {[%clk 0:00:32.2]} 29. Rd7
{[%clk 0:00:31.5]} 29... Nxc3 {[%clk 0:00:30.4]} 30. Be5 {[%clk 0:00:21.6]}
30... Bxe5 {[%clk 0:00:27]} 31. dxe5 {[%clk 0:00:21.1]} 31... Bd5 {[%clk
0:00:21.2]} 32. Nf4 {[%clk 0:00:17.5]} 32... a5 {[%clk 0:00:18]} 33. e6 {[%clk
0:00:16.3]} 33... fxe6 {[%clk 0:00:16.2]} 34. Nxg6 {[%clk 0:00:14.7]} 34... a4
{[%clk 0:00:12.6]} 35. Ne7+ {[%clk 0:00:13.3]} 35... Kf8 {[%clk 0:00:11]} 36.
Ng6+ {[%clk 0:00:11.5]} 36... Ke8 {[%clk 0:00:09.4]} 37. Re7+ {[%clk 0:00:09.2]}
37... Kd8 {[%clk 0:00:08.8]} 38. Rh7 {[%clk 0:00:07.5]} 38... Rc8 {[%clk
0:00:04.6]} 0-1

[Event "Live Chess"]
[Site "Chess.com"]
[Date "2024.06.02"]
[Round "-"]
[White "NeilDruggan73"]
[Black "jimwad"]
[Result "1-0"]
[WhiteElo "1709"]
[BlackElo "1302"]
[TimeControl "300"]
[EndTime "5:01:31 PDT"]
[Termination "NeilDruggan73 won by resignation"]

1. d4 {[%clk 0:04:57.5]} 1... d5 {[%clk 0:04:58.7]} 2. Bg5 {[%clk 0:04:54.6]}
2... Nf6 {[%clk 0:04:53.9]} 3. Bxf6 {[%clk 0:04:53.3]} 3... exf6 {[%clk
0:04:51.7]} 4. e3 {[%clk 0:04:52.9]} 4... Be6 {[%clk 0:04:50.4]} 5. g3 {[%clk
0:04:51.3]} 5... Nc6 {[%clk 0:04:48.2]} 6. Ne2 {[%clk 0:04:50.1]} 6... Be7
{[%clk 0:04:46.2]} 7. Bg2 {[%clk 0:04:49.6]} 7... O-O {[%clk 0:04:43.9]} 8. Nd2
{[%clk 0:04:47.8]} 8... Bb4 {[%clk 0:04:30.5]} 9. c3 {[%clk 0:04:43.1]} 9... Ba5
{[%clk 0:04:29]} 10. O-O {[%clk 0:04:39.9]} 10... Bb6 {[%clk 0:04:27]} 11. b3
{[%clk 0:04:36.9]} 11... Ne7 {[%clk 0:04:25.2]} 12. Rc1 {[%clk 0:04:34.8]} 12...
c6 {[%clk 0:04:24.2]} 13. c4 {[%clk 0:04:33.1]} 13... dxc4 {[%clk 0:04:15.6]}
14. bxc4 {[%clk 0:04:28]} 14... Bc7 {[%clk 0:04:04.7]} 15. Rb1 {[%clk
0:04:18.7]} 15... b6 {[%clk 0:04:01.6]} 16. Qa4 {[%clk 0:04:13.1]} 16... Bd7
{[%clk 0:03:54.2]} 17. Qc2 {[%clk 0:04:11.6]} 17... Rc8 {[%clk 0:03:44.2]} 18.
Rfd1 {[%clk 0:04:08.3]} 18... Bf5 {[%clk 0:03:35.4]} 19. e4 {[%clk 0:04:05.6]}
19... Be6 {[%clk 0:03:33.1]} 20. f4 {[%clk 0:03:58.7]} 20... f5 {[%clk
0:03:29.4]} 21. e5 {[%clk 0:03:55]} 21... c5 {[%clk 0:03:12.6]} 22. d5 {[%clk
0:03:51.3]} 22... Bd7 {[%clk 0:03:09.5]} 23. d6 {[%clk 0:03:49.7]} 23... Bxd6
{[%clk 0:03:01.7]} 24. exd6 {[%clk 0:03:48.1]} 24... Ng6 {[%clk 0:03:00.8]} 25.
Nc3 {[%clk 0:03:42.4]} 25... Be6 {[%clk 0:02:58]} 26. Qd3 {[%clk 0:03:09.8]}
26... Qd7 {[%clk 0:02:43.9]} 27. Nf3 {[%clk 0:03:02.5]} 27... Rcd8 {[%clk
0:02:31.5]} 28. Ne5 {[%clk 0:03:00.8]} 28... Nxe5 {[%clk 0:02:29.3]} 29. fxe5
{[%clk 0:02:58.4]} 29... f6 {[%clk 0:02:20.8]} 30. Re1 {[%clk 0:02:42.2]} 30...
fxe5 {[%clk 0:02:14.8]} 31. Rxe5 {[%clk 0:02:40.4]} 31... Rf6 {[%clk 0:02:13.8]}
32. Nb5 {[%clk 0:02:36.4]} 32... a6 {[%clk 0:02:03.3]} 33. Nc3 {[%clk
0:02:23.4]} 33... Qxd6 {[%clk 0:01:59.7]} 34. Qxd6 {[%clk 0:02:21.3]} 34... Rxd6
{[%clk 0:01:58]} 35. Bd5 {[%clk 0:02:09]} 35... Bxd5 {[%clk 0:01:51.7]} 36. Nxd5
{[%clk 0:02:06.9]} 36... Rfe6 {[%clk 0:01:39.4]} 37. Rbe1 {[%clk 0:02:02.2]}
37... Rxe5 {[%clk 0:01:37.3]} 38. Rxe5 {[%clk 0:02:01.8]} 38... g6 {[%clk
0:01:36.4]} 39. h4 {[%clk 0:01:53]} 39... Kg7 {[%clk 0:01:33.3]} 40. Kf2 {[%clk
0:01:52]} 40... b5 {[%clk 0:01:22.2]} 41. cxb5 {[%clk 0:01:45.3]} 41... axb5
{[%clk 0:01:21.3]} 42. Nc7 {[%clk 0:01:42.9]} 42... Kf6 {[%clk 0:01:11.6]} 43.
Rxc5 {[%clk 0:01:39.9]} 43... Rd2+ {[%clk 0:01:04.3]} 44. Ke3 {[%clk 0:01:37.4]}
44... Rxa2 {[%clk 0:01:02.5]} 45. Rxb5 {[%clk 0:01:35.9]} 45... Ra3+ {[%clk
0:00:59.6]} 46. Kf2 {[%clk 0:01:33.9]} 46... Rc3 {[%clk 0:00:55.7]} 47. Nd5+
{[%clk 0:01:30.2]} 1-0

[Event "Live Chess"]
[Site "Chess.com"]
[Date "2024.06.02"]
[Round "-"]
[White "LL220284LL"]
[Black "defenderalist"]
[Result "1-0"]
[WhiteElo "2500"]
[BlackElo "1549"]
[TimeControl "300"]
[EndTime "5:01:42 PDT"]
[Termination "LL220284LL won by checkmate"]

1. g3 {[%clk 0:04:57.2]} 1... d5 {[%clk 0:04:57.3]} 2. Bg2 {[%clk 0:04:51.6]}
2... e5 {[%clk 0:04:56.6]} 3. b3 {[%clk 0:04:45.6]} 3... c6 {[%clk 0:04:55.4]}
4. Bb2 {[%clk 0:04:44.2]} 4... Bd6 {[%clk 0:04:54.3]} 5. d3 {[%clk 0:04:42.9]}
5... Be6 {[%clk 0:04:53.6]} 6. Nf3 {[%clk 0:04:41.4]} 6... Qd7 {[%clk
0:04:52.9]} 7. Ng5 {[%clk 0:04:38.3]} 7... Bg4 {[%clk 0:04:47.5]} 8. h3 {[%clk
0:04:35.5]} 8... Bh5 {[%clk 0:04:46.3]} 9. g4 {[%clk 0:04:33.1]} 9... Bg6 {[%clk
0:04:45]} 10. Nd2 {[%clk 0:04:32.1]} 10... f6 {[%clk 0:04:39.9]} 11. Ngf3 {[%clk
0:04:29.4]} 11... h5 {[%clk 0:04:30.7]} 12. Nh4 {[%clk 0:04:24.1]} 12... Bf7
{[%clk 0:04:22.4]} 13. e3 {[%clk 0:04:17.9]} 13... g5 {[%clk 0:04:04.5]} 14. Nf5
{[%clk 0:04:15.9]} 14... Be6 {[%clk 0:03:52.4]} 15. Nxd6+ {[%clk 0:04:14.5]}
15... Qxd6 {[%clk 0:03:49.3]} 16. gxh5 {[%clk 0:04:13.9]} 16... Nd7 {[%clk
0:03:42.4]} 17. Qe2 {[%clk 0:04:11.5]} 17... a5 {[%clk 0:03:35.2]} 18. a4 {[%clk
0:04:08.3]} 18... b5 {[%clk 0:03:33.8]} 19. axb5 {[%clk 0:04:05.9]} 19... cxb5
{[%clk 0:03:31.9]} 20. c4 {[%clk 0:03:59.2]} 20... bxc4 {[%clk 0:03:30.3]} 21.
bxc4 {[%clk 0:03:57]} 21... dxc4 {[%clk 0:03:26.8]} 22. Bxa8 {[%clk 0:03:42.1]}
22... cxd3 {[%clk 0:03:20.7]} 23. Qf3 {[%clk 0:03:38.6]} 23... f5 {[%clk
0:03:06]} 24. Qc6 {[%clk 0:03:35.6]} 24... Qb4 {[%clk 0:02:58.7]} 25. Ba3 {[%clk
0:03:32.4]} 25... Qh4 {[%clk 0:02:38.5]} 26. Qxe6+ {[%clk 0:03:29.8]} 26... Ne7
{[%clk 0:02:36]} 27. Qxe7# {[%clk 0:03:28.6]} 1-0

[Event "Live Chess"]
[Site "Chess.com"]
[Date "2024.06.02"]
[Round "-"]
[White "nigelst"]
[Black "Pandreq"]
[Result "1-0"]
[WhiteElo "1735"]
[BlackElo "1233"]
[TimeControl "300"]
[EndTime "5:02:19 PDT"]
[Termination "nigelst won on time"]

1. e4 {[%clk 0:04:57.2]} 1... Nf6 {[%clk 0:04:58.7]} 2. e5 {[%clk 0:04:55.4]}
2... Nd5 {[%clk 0:04:57.7]} 3. d4 {[%clk 0:04:53.6]} 3... c6 {[%clk 0:04:57]} 4.
c4 {[%clk 0:04:51.5]} 4... Nb6 {[%clk 0:04:56]} 5. Nc3 {[%clk 0:04:49.2]} 5...
e6 {[%clk 0:04:55.1]} 6. f4 {[%clk 0:04:45.5]} 6... d5 {[%clk 0:04:54]} 7. c5
{[%clk 0:04:42.2]} 7... N6d7 {[%clk 0:04:49.7]} 8. Nf3 {[%clk 0:04:41]} 8... b6
{[%clk 0:04:48.3]} 9. b4 {[%clk 0:04:39.3]} 9... a5 {[%clk 0:04:44.7]} 10. Ba3
{[%clk 0:04:30]} 10... axb4 {[%clk 0:04:25.8]} 11. Bxb4 {[%clk 0:04:27]} 11...
bxc5 {[%clk 0:04:24.4]} 12. Bxc5 {[%clk 0:04:24.3]} 12... Nxc5 {[%clk
0:04:20.6]} 13. dxc5 {[%clk 0:04:23.1]} 13... Bxc5 {[%clk 0:04:19.5]} 14. Bd3
{[%clk 0:04:13.9]} 14... Bb4 {[%clk 0:04:12.1]} 15. Qb3 {[%clk 0:04:09]} 15...
Qa5 {[%clk 0:04:05.1]} 16. Rc1 {[%clk 0:04:04.9]} 16... O-O {[%clk 0:03:53.9]}
17. O-O {[%clk 0:04:02.3]} 17... Bxc3 {[%clk 0:03:48.9]} 18. Rxc3 {[%clk
0:03:56.3]} 18... Bd7 {[%clk 0:03:42.2]} 19. a3 {[%clk 0:03:37.7]} 19... Rc8
{[%clk 0:03:33.9]} 20. Rfc1 {[%clk 0:03:35]} 20... c5 {[%clk 0:03:24.6]} 21. Qb2
{[%clk 0:03:12.1]} 21... c4 {[%clk 0:03:18.3]} 22. Bb1 {[%clk 0:03:02.4]} 22...
Nc6 {[%clk 0:02:53.1]} 23. Qc2 {[%clk 0:03:00.6]} 23... Ne7 {[%clk 0:02:42.3]}
24. Qxh7+ {[%clk 0:02:57.7]} 24... Kf8 {[%clk 0:02:39.2]} 25. Qh8+ {[%clk
0:02:56.7]} 25... Ng8 {[%clk 0:02:38.4]} 26. Bh7 {[%clk 0:02:54.9]} 26... Ke7
{[%clk 0:02:34]} 27. Qxg7 {[%clk 0:02:49.4]} 27... Qd8 {[%clk 0:01:50.9]} 28.
Bxg8 {[%clk 0:02:23.7]} 28... Qxg8 {[%clk 0:01:47.4]} 29. Qf6+ {[%clk
0:02:22.6]} 29... Ke8 {[%clk 0:01:43.2]} 30. Ng5 {[%clk 0:02:21.3]} 30... Bc6
{[%clk 0:01:31.7]} 31. Rh3 {[%clk 0:02:18.8]} 31... Qg6 {[%clk 0:01:25.1]} 32.
Rh8+ {[%clk 0:02:00.8]} 32... Kd7 {[%clk 0:01:23.7]} 33. Rxc8 {[%clk 0:01:54.5]}
33... Rxc8 {[%clk 0:01:22.7]} 34. Qxf7+ {[%clk 0:01:51.7]} 34... Qxf7 {[%clk
0:01:21.5]} 35. Nxf7 {[%clk 0:01:50.4]} 35... Ra8 {[%clk 0:01:15.5]} 36. Rc3
{[%clk 0:01:44]} 36... Ba4 {[%clk 0:01:11.7]} 37. Nd6 {[%clk 0:01:35]} 37... Bb3
{[%clk 0:01:09.7]} 38. Rh3 {[%clk 0:01:31.4]} 38... Rxa3 {[%clk 0:01:04.2]} 39.
Rh7+ {[%clk 0:01:27.6]} 39... Kc6 {[%clk 0:01:02.7]} 40. Rh8 {[%clk 0:01:17.6]}
40... c3 {[%clk 0:00:41.5]} 41. Rc8+ {[%clk 0:01:14.3]} 41... Kd7 {[%clk
0:00:40.2]} 42. Rxc3 {[%clk 0:01:12.4]} 42... d4 {[%clk 0:00:34]} 43. Rd3 {[%clk
0:01:03.5]} 43... Ra1+ {[%clk 0:00:30.3]} 44. Kf2 {[%clk 0:01:01.6]} 44... Bd5
{[%clk 0:00:13.4]} 45. Rxd4 {[%clk 0:00:55.2]} 45... Ra3 {[%clk 0:00:12.6]} 46.
Nb5 {[%clk 0:00:49]} 46... Rb3 {[%clk 0:00:08.4]} 47. Nd6 {[%clk 0:00:43.8]}
47... Rb2+ {[%clk 0:00:06.2]} 48. Ke3 {[%clk 0:00:42.6]} 48... Rxg2 {[%clk
0:00:03.8]} 49. Nc4 {[%clk 0:00:36.2]} 49... Rxh2 {[%clk 0:00:02.5]} 50. Nb6+
{[%clk 0:00:35.1]} 1-0

[Event "Live Chess"]
[Site "Chess.com"]
[Date "2024.06.02"]
[Round "-"]
[White "IgorSchukin"]
[Black "slava_ukr"]
[Result "0-1"]
[WhiteElo "1767"]
[BlackElo "2373"]
[TimeControl "300"]
[EndTime "5:02:49 PDT"]
[Termination "slava_ukr won by checkmate"]

1. e4 {[%clk 0:04:40.2]} 1... d5 {[%clk 0:04:58]} 2. exd5 {[%clk 0:04:38.7]}
2... c6 {[%clk 0:04:57]} 3. dxc6 {[%clk 0:04:36.4]} 3... Nxc6 {[%clk 0:04:55.9]}
4. g3 {[%clk 0:04:35.4]} 4... Nf6 {[%clk 0:04:54.6]} 5. Bg2 {[%clk 0:04:34.4]}
5... e5 {[%clk 0:04:54]} 6. Ne2 {[%clk 0:04:33.2]} 6... Bc5 {[%clk 0:04:52.8]}
7. O-O {[%clk 0:04:29.8]} 7... O-O {[%clk 0:04:37.6]} 8. c3 {[%clk 0:04:28.7]}
8... Bf5 {[%clk 0:04:35.8]} 9. d4 {[%clk 0:04:26.3]} 9... exd4 {[%clk
0:04:33.7]} 10. Bxc6 {[%clk 0:04:23.3]} 10... bxc6 {[%clk 0:04:30.4]} 11. Nxd4
{[%clk 0:04:22.3]} 11... Bh3 {[%clk 0:04:29.3]} 12. Re1 {[%clk 0:04:19.1]} 12...
Qd5 {[%clk 0:04:25]} 13. Qf3 {[%clk 0:04:15.8]} 13... Bxd4 {[%clk 0:04:21.9]}
14. Qxd5 {[%clk 0:04:14.4]} 14... Bxf2+ {[%clk 0:04:19.2]} 15. Kxf2 {[%clk
0:04:12.5]} 15... cxd5 {[%clk 0:04:15.7]} 16. Nd2 {[%clk 0:04:05.9]} 16... Rae8
{[%clk 0:04:13.7]} 17. Rxe8 {[%clk 0:04:00.8]} 17... Rxe8 {[%clk 0:04:13.1]} 18.
b3 {[%clk 0:03:55.7]} 18... Ng4+ {[%clk 0:04:11.8]} 19. Kf3 {[%clk 0:03:49.7]}
19... Re3+ {[%clk 0:04:03]} 20. Kf4 {[%clk 0:03:48.4]} 20... h6 {[%clk
0:03:53.3]} 21. Nc4 {[%clk 0:03:35.5]} 21... g5+ {[%clk 0:03:43.6]} 22. Kf5
{[%clk 0:03:30.6]} 22... Rf3+ {[%clk 0:03:27.6]} 23. Bf4 {[%clk 0:03:25.7]}
23... dxc4 {[%clk 0:03:26.5]} 24. Ke4 {[%clk 0:03:19.4]} 24... Rf1 {[%clk
0:03:16]} 25. Rxf1 {[%clk 0:03:15.7]} 25... Bxf1 {[%clk 0:03:12.6]} 26. Bb8
{[%clk 0:03:10]} 26... a6 {[%clk 0:03:09.1]} 27. h4 {[%clk 0:03:07.6]} 27... Kg7
{[%clk 0:03:05]} 28. hxg5 {[%clk 0:03:06]} 28... hxg5 {[%clk 0:03:03.5]} 29. Kd4
{[%clk 0:03:01]} 29... cxb3 {[%clk 0:03:00.7]} 30. axb3 {[%clk 0:02:59.7]} 30...
Kg6 {[%clk 0:02:59.6]} 31. c4 {[%clk 0:02:58.6]} 31... Kf5 {[%clk 0:02:52.8]}
32. b4 {[%clk 0:02:57]} 32... Ke6 {[%clk 0:02:46.5]} 33. c5 {[%clk 0:02:50.9]}
33... Bb5 {[%clk 0:02:44]} 34. Bc7 {[%clk 0:02:35.4]} 34... f5 {[%clk
0:02:42.8]} 35. Bb8 {[%clk 0:02:31.9]} 35... Nf6 {[%clk 0:02:39]} 36. Ke3 {[%clk
0:02:27.2]} 36... Nd5+ {[%clk 0:02:37.6]} 37. Kf3 {[%clk 0:02:24.3]} 37... Nxb4
{[%clk 0:02:36.5]} 38. g4 {[%clk 0:02:19.4]} 38... a5 {[%clk 0:02:34.8]} 39.
gxf5+ {[%clk 0:02:17.2]} 39... Kxf5 {[%clk 0:02:34]} 40. Ke3 {[%clk 0:02:15.9]}
40... a4 {[%clk 0:02:32]} 41. Kd2 {[%clk 0:02:14.4]} 41... g4 {[%clk 0:02:24.7]}
42. Kc3 {[%clk 0:02:11.7]} 42... Nc6 {[%clk 0:02:23.6]} 43. Bc7 {[%clk
0:02:09.3]} 43... Ke4 {[%clk 0:02:22.1]} 44. Kb2 {[%clk 0:02:06.8]} 44... Kf3
{[%clk 0:02:21.1]} 45. Ka3 {[%clk 0:02:04.8]} 45... g3 {[%clk 0:02:20]} 46. Bxg3
{[%clk 0:02:02.8]} 46... Kxg3 {[%clk 0:02:19.1]} 47. Kb2 {[%clk 0:02:01.1]}
47... Kf3 {[%clk 0:02:18.1]} 48. Kc3 {[%clk 0:01:59]} 48... Ke4 {[%clk
0:02:17.2]} 49. Kc2 {[%clk 0:01:56.6]} 49... Kd5 {[%clk 0:02:16.5]} 50. Kc3
{[%clk 0:01:55.6]} 50... Kxc5 {[%clk 0:02:15.8]} 51. Kb2 {[%clk 0:01:54.8]}
51... Kb4 {[%clk 0:02:15.1]} 52. Ka2 {[%clk 0:01:53.8]} 52... a3 {[%clk
0:02:14.3]} 53. Ka1 {[%clk 0:01:52.8]} 53... Kb3 {[%clk 0:02:13.6]} 54. Kb1
{[%clk 0:01:51.8]} 54... Nd4 {[%clk 0:02:12.6]} 55. Ka1 {[%clk 0:01:50.5]} 55...
Be8 {[%clk 0:02:10.4]} 56. Kb1 {[%clk 0:01:49.3]} 56... a2+ {[%clk 0:02:09.6]}
57. Ka1 {[%clk 0:01:48.3]} 57... Nc2# {[%clk 0:02:08.7]} 0-1

[Event "Live Chess"]
[Site "Chess.com"]
[Date "2024.06.02"]
[Round "-"]
[White "degringolade64"]
[Black "TJ-W"]
[Result "1-0"]
[WhiteElo "2129"]
[BlackElo "1580"]
[TimeControl "300"]
[EndTime "5:03:01 PDT"]
[Termination "degringolade64 won on time"]

1. e4 {[%clk 0:04:56.4]} 1... e5 {[%clk 0:04:55.6]} 2. Nf3 {[%clk 0:04:53.1]}
2... Nc6 {[%clk 0:04:46.6]} 3. Bb5 {[%clk 0:04:51]} 3... a6 {[%clk 0:04:44.3]}
4. Ba4 {[%clk 0:04:48.6]} 4... Bc5 {[%clk 0:04:41.9]} 5. O-O {[%clk 0:04:39.2]}
5... Nf6 {[%clk 0:04:33.4]} 6. c3 {[%clk 0:04:28.5]} 6... b5 {[%clk 0:04:17.6]}
7. Bc2 {[%clk 0:04:24.3]} 7... Bb6 {[%clk 0:04:16]} 8. d4 {[%clk 0:04:15.7]}
8... d6 {[%clk 0:03:59.6]} 9. Bg5 {[%clk 0:04:04.4]} 9... h6 {[%clk 0:03:57]}
10. Bh4 {[%clk 0:04:02.7]} 10... g5 {[%clk 0:03:49.5]} 11. Bg3 {[%clk
0:03:57.9]} 11... Bg4 {[%clk 0:03:39.2]} 12. dxe5 {[%clk 0:03:46.3]} 12... Nxe5
{[%clk 0:03:08.8]} 13. Bxe5 {[%clk 0:03:44.4]} 13... dxe5 {[%clk 0:03:06.2]} 14.
Qxd8+ {[%clk 0:03:43.5]} 14... Rxd8 {[%clk 0:03:04.8]} 15. Nxe5 {[%clk
0:03:43.1]} 15... Bd7 {[%clk 0:02:46.9]} 16. Nd2 {[%clk 0:03:34]} 16... O-O
{[%clk 0:02:43.8]} 17. Rad1 {[%clk 0:03:17.1]} 17... Be6 {[%clk 0:02:40.9]} 18.
Nb3 {[%clk 0:03:05.1]} 18... Ng4 {[%clk 0:02:23.7]} 19. Nxg4 {[%clk 0:02:56.6]}
19... Bxg4 {[%clk 0:02:18.9]} 20. Rxd8 {[%clk 0:02:54.7]} 20... Rxd8 {[%clk
0:02:16.1]} 21. h3 {[%clk 0:02:54.3]} 21... Be6 {[%clk 0:02:10.7]} 22. Rd1
{[%clk 0:02:50.5]} 22... Rxd1+ {[%clk 0:02:04.3]} 23. Bxd1 {[%clk 0:02:50.4]}
23... Kf8 {[%clk 0:01:57.7]} 24. Nd4 {[%clk 0:02:47]} 24... Bxa2 {[%clk
0:01:45.1]} 25. Nf5 {[%clk 0:02:25.7]} 25... Bb1 {[%clk 0:01:28.8]} 26. Bf3
{[%clk 0:02:24]} 26... h5 {[%clk 0:01:16.4]} 27. Kf1 {[%clk 0:02:18.2]} 27... f6
{[%clk 0:01:06.4]} 28. Ke2 {[%clk 0:02:13]} 28... Ba2 {[%clk 0:00:59.4]} 29.
Bxh5 {[%clk 0:02:10.3]} 29... Bc4+ {[%clk 0:00:50.6]} 30. Ke1 {[%clk 0:02:07.7]}
30... Bd3 {[%clk 0:00:47.3]} 31. f3 {[%clk 0:02:03.1]} 31... Bc4 {[%clk
0:00:38.7]} 32. h4 {[%clk 0:01:52]} 32... Be6 {[%clk 0:00:29.1]} 33. hxg5 {[%clk
0:01:40.3]} 33... fxg5 {[%clk 0:00:28.4]} 34. Nd4 {[%clk 0:01:37.5]} 34... Ke7
{[%clk 0:00:21.6]} 35. Kd2 {[%clk 0:01:31]} 35... Bc4 {[%clk 0:00:14.6]} 36. Bg4
{[%clk 0:01:25.9]} 36... c5 {[%clk 0:00:13.2]} 37. Nf5+ {[%clk 0:01:21.9]} 37...
Kf6 {[%clk 0:00:10.9]} 38. g3 {[%clk 0:01:19]} 38... Be6 {[%clk 0:00:10.4]} 39.
f4 {[%clk 0:01:15.3]} 39... gxf4 {[%clk 0:00:08.8]} 40. gxf4 {[%clk 0:01:15.2]}
40... Bxf5 {[%clk 0:00:08.4]} 41. Bxf5 {[%clk 0:01:14.3]} 41... Bc7 {[%clk
0:00:07.6]} 42. Ke3 {[%clk 0:01:12.4]} 42... b4 {[%clk 0:00:06.6]} 43. Bc8
{[%clk 0:01:11.7]} 43... a5 {[%clk 0:00:03.8]} 44. cxb4 {[%clk 0:01:10.3]} 44...
cxb4 {[%clk 0:00:02.9]} 45. e5+ {[%clk 0:01:08.1]} 45... Bxe5 {[%clk 0:00:01.4]}
46. fxe5+ {[%clk 0:01:06.5]} 46... Kxe5 {[%clk 0:00:01.3]} 47. Kd3 {[%clk
0:01:05.4]} 47... Kd5 {[%clk 0:00:00.8]} 48. Kc2 {[%clk 0:01:00.5]} 48... Kc5
{[%clk 0:00:00.7]} 49. Kb3 {[%clk 0:00:58.6]} 49... a4+ {[%clk 0:00:00.6]} 50.
Kxa4 {[%clk 0:00:56.9]} 1-0

[Event "Live Chess"]
[Site "Chess.com"]
[Date "2024.06.02"]
[Round "-"]
[White "friarnator"]
[Black "Tatarinov_Maxim"]
[Result "0-1"]
[WhiteElo "2200"]
[BlackElo "2294"]
[TimeControl "300"]
[EndTime "5:03:05 PDT"]
[Termination "Tatarinov_Maxim won by checkmate"]

1. d4 {[%clk 0:04:58.2]} 1... Nf6 {[%clk 0:04:58.8]} 2. Nc3 {[%clk 0:04:57.6]}
2... c5 {[%clk 0:04:55.2]} 3. e4 {[%clk 0:04:55.5]} 3... cxd4 {[%clk 0:04:54]}
4. Qxd4 {[%clk 0:04:55.4]} 4... Nc6 {[%clk 0:04:53.5]} 5. Qd3 {[%clk 0:04:51.4]}
5... d6 {[%clk 0:04:52.7]} 6. a3 {[%clk 0:04:49.5]} 6... g6 {[%clk 0:04:51.9]}
7. Bd2 {[%clk 0:04:48.7]} 7... Bg7 {[%clk 0:04:51.4]} 8. O-O-O {[%clk
0:04:48.1]} 8... O-O {[%clk 0:04:50.8]} 9. f3 {[%clk 0:04:47.4]} 9... Be6 {[%clk
0:04:47.2]} 10. h4 {[%clk 0:04:45.2]} 10... h5 {[%clk 0:04:45.2]} 11. Nh3 {[%clk
0:04:44.2]} 11... a6 {[%clk 0:04:39.8]} 12. Nf4 {[%clk 0:04:42.1]} 12... Ne5
{[%clk 0:04:36.8]} 13. Qd4 {[%clk 0:04:31.8]} 13... Bd7 {[%clk 0:04:32.3]} 14.
Nfd5 {[%clk 0:04:28.6]} 14... Nxd5 {[%clk 0:04:29.5]} 15. Nxd5 {[%clk
0:04:27.3]} 15... Nxf3 {[%clk 0:04:26.2]} 16. Qxg7+ {[%clk 0:03:55.4]} 16...
Kxg7 {[%clk 0:04:23]} 17. gxf3 {[%clk 0:03:55.3]} 17... Be6 {[%clk 0:04:15.5]}
18. Bc3+ {[%clk 0:03:52.8]} 18... Kg8 {[%clk 0:04:06.9]} 19. Nf4 {[%clk
0:03:52.2]} 19... Qd7 {[%clk 0:04:00.6]} 20. Rg1 {[%clk 0:03:50.3]} 20... Rfc8
{[%clk 0:03:50.4]} 21. Nxg6 {[%clk 0:03:14.9]} 21... fxg6 {[%clk 0:03:43]} 22.
Rxg6+ {[%clk 0:03:14.8]} 22... Kf7 {[%clk 0:03:42.1]} 23. Rg7+ {[%clk
0:03:07.9]} 23... Kf8 {[%clk 0:03:40.9]} 24. Rh7 {[%clk 0:03:03.2]} 24... Rxc3
{[%clk 0:03:37.2]} 25. bxc3 {[%clk 0:02:58.2]} 25... Rc8 {[%clk 0:03:13.9]} 26.
f4 {[%clk 0:02:49.1]} 26... Bg4 {[%clk 0:03:07.2]} 27. Rd5 {[%clk 0:02:41.2]}
27... Kg8 {[%clk 0:02:56.5]} 28. Rhxh5 {[%clk 0:01:55.7]} 28... Bxh5 {[%clk
0:02:53.1]} 29. Rxh5 {[%clk 0:01:55.6]} 29... Rxc3 {[%clk 0:02:48]} 30. Kd2
{[%clk 0:01:49.8]} 30... Qc7 {[%clk 0:02:30.5]} 31. Bd3 {[%clk 0:01:46.2]} 31...
Rc5 {[%clk 0:02:29.4]} 32. f5 {[%clk 0:01:43.7]} 32... Qa5+ {[%clk 0:02:25.1]}
33. Ke2 {[%clk 0:01:41.7]} 33... Qxa3 {[%clk 0:02:22.3]} 34. Rg5+ {[%clk
0:01:40.7]} 34... Kf7 {[%clk 0:02:19.2]} 35. h5 {[%clk 0:01:40.1]} 35... Qb2
{[%clk 0:02:13.1]} 36. h6 {[%clk 0:01:37.1]} 36... Rxc2+ {[%clk 0:02:11.3]} 37.
Kf3 {[%clk 0:01:29.7]} 37... Rf2+ {[%clk 0:02:08.1]} 38. Ke3 {[%clk 0:01:26]}
38... Qb6# {[%clk 0:02:04]} 0-1